bitfinex-derivatives/quotes_SOLF0:USTF0_20250413
["timestamp","ask_amount","ask_price","bid_price","bid_amount"]
[1744508695354,0.05809792,132.49,132.47,7.60533093]
[1744508695651,0.05809792,132.49,132.47,0.05533093]
[1744508698055,7.46914535,132.49,132.47,0.05533093]
[1744508698351,0.05809792,132.49,132.47,0.05533093]
[1744508701255,7.5496,132.48,132.47,0.05533093]
[1744508701457,7.41104743,132.47,132.4,29.86]
[1744508701756,29.86,132.46,132.4,37.27104743]
[1744508702561,0.05474261,132.44,132.3,429.0260725]
[1744508702854,29.86,132.46,132.3,429.0260725]
[1744508702855,14.96504743,132.41,132.37,7.5556]
[1744508703060,7.41104743,132.39,132.31,6.1106]
[1744508703359,7.5554,132.38,132.33,7.5579]
[1744508703558,7.41104743,132.37,132.3,100.8860725]
[1744508703757,14.96844743,132.35,132.34,0.05070359]
[1744508703953,29.86,132.36,132.34,0.05070359]
[1744508704361,7.41104743,132.35,132.34,0.05070359]
[1744508704960,14.96804743,132.35,132.34,0.05070359]
[1744508705261,29.86,132.36,132.34,0.05070359]
[1744508705855,7.41104743,132.35,132.34,0.05070359]
[1744508706059,7.41104743,132.35,132.24,29.86]
[1744508706259,7.41104743,132.31,132.24,29.86]
[1744508706461,37.27104743,132.31,132.24,29.86]
[1744508707059,0.05308855,132.29,132.26,0.05618938]
[1744508707250,0.05308855,132.29,132.26,7.61818938]
[1744508707461,7.41104743,132.27,132.26,0.05618938]
[1744508707656,37.29104743,132.27,132.26,0.05618938]
[1744508708956,37.29104743,132.27,132.17,6.3181]
[1744508709156,37.29104743,132.27,132.17,13.72914743]
[1744508709456,44.85284743,132.27,132.21,7.5646]
[1744508710061,37.29104743,132.27,132.13,1.31631206]
[1744508710252,37.29104743,132.27,132.18,7.41104743]
[1744508710455,0.05811619,132.22,132.2,0.05819508]
[1744508710657,37.29104743,132.27,132.2,0.05819508]
[1744508710658,37.29104743,132.27,132.22,7.5641]
[1744508710957,29.88,132.27,132.2,7.41104743]
[1744508711158,7.41104743,132.35,132.25,7.41104743]
[1744508711460,31.8953,132.35,132.29,7.41104743]
[1744508711662,628.26,132.38,132.29,37.29104743]
[1744508711861,598.38,132.38,132.31,7.41104743]
[1744508712053,0.05292927,132.35,132.32,0.05692245]
[1744508712652,0.05292927,132.35,132.34,7.5576]
[1744508713560,4.0757,132.41,132.38,7.555]
[1744508713755,29.88,132.43,132.34,11.87352797]
[1744508714262,29.88,132.43,132.33,31.9786]
[1744508714263,41.2117779,132.43,132.33,31.9786]
[1744508714763,0.0526705,132.39,132.37,0.04938813]
[1744508715565,0.0526705,132.39,132.38,7.5553]
[1744508717864,598.38,132.45,132.38,29.88]
[1744508718261,11.3317779,132.49,132.38,29.88]
[1744508718454,29.88,132.48,132.39,1.9901]
[1744508718664,29.88,132.48,132.39,13.3218779]
[1744508719067,0.05301338,132.45,132.44,7.5519]
[1744508719366,1.338e-05,132.45,132.44,7.5519]
[1744508719560,1.338e-05,132.45,132.43,7.5523]
[1744508719766,1.338e-05,132.45,132.42,0.05617809]
[1744508720062,1.338e-05,132.45,132.43,7.5521]
[1744508720263,1.338e-05,132.45,132.42,0.05617809]
[1744508720467,29.88,132.44,132.42,0.05617809]
[1744508720668,29.88,132.44,132.43,7.5525]
[1744508721667,1.338e-05,132.45,132.44,7.5519]
[1744508724172,1.338e-05,132.45,132.44,37.4319]
[1744508726774,29.88,132.55,132.46,13.20207121]
[1744508727373,29.88,132.55,132.44,29.88]
[1744508727567,29.88,132.55,132.46,13.20207121]
[1744508727868,0.04800191,132.51,132.48,0.05484827]
[1744508728069,0.04800191,132.51,132.48,29.93484827]
[1744508728277,0.04800191,132.51,132.5,7.5485]
[1744508728470,1.91e-06,132.51,132.5,7.5485]
[1744508731072,13.20207121,132.62,132.5,13.20207121]
[1744508731279,4.1335,132.61,132.5,13.20207121]
[1744508731469,4.1335,132.61,132.55,7.5454]
[1744508731877,7.5432,132.6,132.55,7.5454]
[1744508732176,29.90171451,132.59,132.57,0.05425683]
[1744508733880,0.04171451,132.59,132.58,7.5439]
[1744508734879,1.451e-05,132.59,132.58,7.5439]
[1744508739880,1.9973,132.66,132.57,29.89425683]
[1744508740182,1.9973,132.66,132.58,1.997]
[1744508740480,1.9973,132.66,132.63,7.5407]
[1744508740981,1.9973,132.66,132.63,0.05557222]
[1744508741581,1.9973,132.66,132.63,7.59627222]
[1744508741780,1.9973,132.66,132.63,0.05557222]
[1744508742281,22.73937121,132.66,132.57,29.84]
[1744508742475,15.19937121,132.66,132.57,29.84]
[1744508742681,13.20207121,132.63,132.54,387.84]
[1744508742981,13.20207121,132.6,132.5,29.84]
[1744508743172,47.76453677,132.59,132.48,1.997]
[1744508743577,0.05202502,132.55,132.52,0.05125175]
[1744508743773,29.89202502,132.55,132.52,0.05125175]
[1744508744283,29.89202502,132.55,132.53,7.5463]
[1744508744785,29.89202502,132.55,132.54,7.5462]
[1744508744978,29.89202502,132.55,132.52,0.05125175]
[1744508745283,29.89202502,132.55,132.52,7.59835175]
[1744508745980,29.89202502,132.55,132.52,0.05125175]
[1744508746184,1.9885,132.54,132.44,31.9515]
[1744508746579,9.5351,132.54,132.49,7.5487]
[1744508746776,1.9885,132.54,132.44,31.9515]
[1744508747082,1.9885,132.54,132.51,7.5476]
[1744508747286,5.29e-06,132.5,132.48,29.89368694]
[1744508747488,29.84,132.55,132.48,29.84]
[1744508747986,33.9907,132.58,132.56,7.5447]
[1744508748488,34.04531831,132.58,132.56,7.59706033]
[1744508748786,29.89461831,132.58,132.56,0.05236033]
[1744508749287,29.89461831,132.58,132.56,7.59726033]
[1744508749788,29.89461831,132.58,132.56,0.05236033]
[1744508749988,29.89461831,132.58,132.56,7.59726033]
[1744508750489,29.89461831,132.58,132.56,0.05236033]
[1744508751291,29.89461831,132.58,132.56,7.59706033]
[1744508752092,29.89461831,132.58,132.56,0.05236033]
[1744508755388,29.89461831,132.58,132.56,7.59726033]
[1744508755593,29.89461831,132.58,132.56,0.05236033]
[1744508757090,29.89461831,132.58,132.49,4.0784]
[1744508757392,29.84,132.58,132.49,1.9492]
[1744508758096,37.3839,132.58,132.49,1.9492]
[1744508758393,37.3839,132.58,132.52,0.05772165]
[1744508758394,0.04995819,132.55,132.52,0.05772165]
[1744508758595,7.59595819,132.55,132.52,0.05772165]
[1744508758895,0.04995819,132.55,132.52,0.05772165]
[1744508759494,0.04995819,132.55,132.52,7.60462165]
[1744508760396,0.04995819,132.55,132.53,7.5467]
[1744508761193,0.04995819,132.55,132.54,7.5462]
[1744508761897,0.04995819,132.55,132.52,0.05772165]
[1744508763098,0.04995819,132.55,132.52,7.60462165]
[1744508763299,0.04995819,132.55,132.52,0.05772165]
[1744508764299,0.04995819,132.55,132.53,7.5466]
[1744508765599,0.04995819,132.55,132.52,0.05772165]
[1744508765810,29.84,132.54,132.52,0.05772165]
[1744508766212,31.9706,132.54,132.52,0.05772165]
[1744508766709,39.5171,132.54,132.52,0.05772165]
[1744508767010,39.5171,132.54,132.44,360.1115]
[1744508767011,41.84027924,132.54,132.44,2.1115]
[1744508767207,7.548,132.51,132.47,7.5498]
[1744508767407,39.70967924,132.5,132.41,4.156]
[1744508767609,9.86967924,132.48,132.38,29.84]
[1744508767910,37.3902,132.47,132.38,31.8478]
[1744508768108,37.3902,132.47,132.41,0.05583751]
[1744508768307,0.05208716,132.44,132.41,0.05583751]
[1744508770011,29.86,132.43,132.41,0.05583751]
[1744508771913,15.82483786,132.42,132.29,985.62]
[1744508772115,15.82483786,132.42,132.29,627.62]
[1744508772310,1.984,132.41,132.29,627.62]
[1744508772506,1.984,132.41,132.37,7.5555]
[1744508772711,1.984,132.41,132.29,627.62]
[1744508772906,0.05436293,132.4,132.38,0.05047261]
[1744508773114,29.86,132.42,132.4,7.5541]
[1744508773409,597.76,132.44,132.38,0.05294351]
[1744508773715,0.05720054,132.42,132.38,29.91294351]
[1744508773912,0.05720054,132.42,132.39,4.1069]
[1744508774116,0.05720054,132.42,132.41,7.5536]
[1744508776218,0.05720054,132.42,132.4,7.554]
[1744508776718,0.05720054,132.42,132.39,0.04939479]
[1744508777220,0.05720054,132.42,132.41,7.5536]
[1744508778615,0.05720054,132.42,132.4,7.5541]
[1744508779325,0.05720054,132.42,132.41,7.5536]
[1744508783827,0.05720054,132.42,132.39,0.04939479]
[1744508784029,29.91720054,132.42,132.39,0.04939479]
[1744508784627,7.5536,132.41,132.39,0.04939479]
[1744508784834,29.91720054,132.42,132.39,0.04939479]
[1744508785631,37.47030054,132.42,132.39,0.04939479]
[1744508786830,37.47030054,132.42,132.39,7.60409479]
[1744508789222,29.91720054,132.42,132.39,0.04939479]
[1744508789427,0.05720054,132.42,132.39,0.04939479]
[1744508790028,0.05720054,132.42,132.41,7.5536]
[1744508792830,0.05720054,132.42,132.39,0.04939479]
[1744508793332,29.86,132.41,132.39,0.04939479]
[1744508793635,37.4139,132.41,132.39,0.04939479]
[1744508794033,7.5542,132.4,132.39,0.04939479]
[1744508794237,29.86,132.41,132.32,4.2295]
[1744508794437,15.81755577,132.39,132.3,1.9871]
[1744508794637,7.5568,132.36,132.32,7.5584]
[1744508794929,29.86,132.35,132.32,7.5584]
[1744508795437,29.91069331,132.35,132.32,7.61295653]
[1744508796637,0.05069331,132.35,132.34,7.5576]
[1744508796934,29.86,132.41,132.33,2.0421]
[1744508797135,2.0592,132.44,132.34,15.81755577]
[1744508797343,29.86,132.45,132.37,15.81755577]
[1744508797529,29.86,132.45,132.43,7.552]
[1744508798036,29.9104931,132.45,132.43,7.60777787]
[1744508798440,29.9104931,132.45,132.44,7.5519]
[1744508798738,29.9104931,132.45,132.43,0.05577787]
[1744508800342,29.9104931,132.45,132.43,7.60817787]
[1744508800640,29.9104931,132.45,132.43,0.05577787]
[1744508801541,29.9104931,132.45,132.44,7.5519]
[1744508801741,0.0504931,132.45,132.44,7.5519]
[1744508804742,628.14,132.5,132.48,7.5496]
[1744508804945,628.14,132.5,132.39,31.9021]
[1744508805140,635.6887,132.5,132.39,31.9021]
[1744508805845,0.0558932,132.46,132.43,0.05153976]
[1744508806440,29.9158932,132.46,132.43,0.05153976]
[1744508806746,15.81755577,132.45,132.33,29.86]
[1744508806946,19.85335577,132.45,132.33,35.9811]
[1744508807647,0.0577315,132.4,132.38,7.60770537]
[1744508807940,29.86,132.42,132.38,7.60770537]
[1744508808246,0.05263838,132.4,132.38,7.60770537]
[1744508809546,0.05263838,132.4,132.39,7.5548]
[1744508810646,0.05263838,132.4,132.38,7.60780537]
[1744508811548,0.05263838,132.4,132.26,29.86]
[1744508811753,15.81755577,132.39,132.26,35.9769]
[1744508811945,7.5571,132.35,132.31,7.5591]
[1744508812141,33.8327,132.38,132.26,35.9769]
[1744508812751,0.05242705,132.33,132.31,0.05737482]
[1744508813049,0.05376487,132.33,132.31,0.05737482]
[1744508813652,0.05376487,132.33,132.32,7.5587]
[1744508813951,0.05376487,132.33,132.31,0.05737482]
[1744508814348,0.05376487,132.33,132.23,35.851]
[1744508814349,15.87132064,132.33,132.23,35.851]
[1744508814548,15.81755577,132.33,132.23,35.851]
[1744508814747,15.81755577,132.33,132.27,7.5615]
[1744508815153,15.81755577,132.33,132.23,35.851]
[1744508815354,7.5603,132.3,132.23,35.851]
[1744508815555,0.05592146,132.29,132.27,0.05272666]
[1744508815756,7.61662146,132.29,132.27,0.05272666]
[1744508815955,0.05592146,132.29,132.27,0.05272666]
[1744508817751,0.05592146,132.29,132.27,7.61412666]
[1744508818253,0.05592146,132.29,132.27,0.05272666]
[1744508818551,2.18642146,132.29,132.18,5.991]
[1744508818758,7.562,132.27,132.22,7.564]
[1744508819059,29.88,132.26,132.22,7.564]
[1744508819557,0.04965159,132.25,132.23,0.05613044]
[1744508819952,0.04965159,132.25,132.23,7.61963044]
[1744508820246,0.04965159,132.25,132.23,0.05613044]
[1744508821253,0.04965159,132.25,132.23,7.62003044]
[1744508821455,0.04965159,132.25,132.23,0.05613044]
[1744508821850,7.61275159,132.25,132.23,0.05613044]
[1744508822051,0.04965159,132.25,132.23,0.05613044]
[1744508823061,7.5633,132.24,132.23,0.05613044]
[1744508823461,0.04965159,132.25,132.23,0.05613044]
[1744508823656,7.61275159,132.25,132.23,0.05613044]
[1744508823863,0.04965159,132.25,132.23,0.05613044]
[1744508824158,7.5633,132.24,132.23,0.05613044]
[1744508824561,15.81755577,132.24,132.15,3.9628]
[1744508824863,7.5648,132.22,132.18,7.5666]
[1744508825059,29.88,132.21,132.18,7.5666]
[1744508825657,29.93258338,132.21,132.18,7.61880739]
[1744508826362,29.93258338,132.21,132.19,7.5661]
[1744508827265,29.93258338,132.21,132.2,7.5656]
[1744508827663,29.93258338,132.21,132.18,0.05220739]
[1744508828059,29.93258338,132.21,132.19,7.566]
[1744508828259,29.93258338,132.21,132.18,0.05220739]
[1744508829064,37.49768338,132.21,132.18,0.05220739]
[1744508829264,29.93258338,132.21,132.18,0.05220739]
[1744508829567,37.49778338,132.21,132.18,0.05220739]
[1744508830263,7.5656,132.2,132.18,0.05220739]
[1744508830469,45.75013915,132.21,132.11,35.9212]
[1744508830767,45.75013915,132.21,132.07,15.81755577]
[1744508830768,7.5682,132.16,132.12,7.57]
[1744508831066,29.9,132.15,132.12,7.57]
[1744508831266,29.9,132.15,132.08,29.9]
[1744508831467,37.4688,132.15,132.11,7.5703]
[1744508831671,0.05069642,132.13,132.1,0.04931912]
[1744508832060,0.05069642,132.13,132.11,7.5708]
[1744508832460,0.05069642,132.13,132.12,7.5702]
[1744508833064,0.05069642,132.13,132.11,7.5707]
[1744508833468,0.05069642,132.13,132.1,0.04931912]
[1744508833768,0.05069642,132.13,132.12,7.5702]
[1744508834269,0.05069642,132.13,132.1,0.04931912]
[1744508834566,0.05069642,132.13,131.98,599.1]
[1744508834567,53.28795577,132.12,132.07,7.5726]
[1744508834768,29.9,132.12,132.02,3.9479]
[1744508835363,7.5716,132.1,132.02,3.9479]
[1744508835563,29.9,132.12,132.05,0.05264448]
[1744508835764,7.5727,132.08,132.05,0.05264448]
[1744508835964,29.9,132.07,132.05,0.05264448]
[1744508836463,29.95349017,132.07,132.05,0.05264448]
[1744508836771,37.52699017,132.07,132.05,0.05264448]
[1744508837269,7.5736,132.06,132.05,0.05264448]
[1744508837467,29.95349017,132.07,131.97,4.0305]
[1744508837768,7.5752,132.04,131.99,7.5775]
[1744508838069,29.92,132.03,131.94,1.9912]
[1744508838269,37.4956,132.03,131.98,7.5782]
[1744508838460,29.97527715,132.02,131.94,17.80875577]
[1744508838665,15.81755577,132.07,131.94,17.80875577]
[1744508838666,29.92,132.01,131.99,0.05608021]
[1744508838867,15.81755577,132.07,131.95,1.9708]
[1744508839169,0.05576876,132.01,131.99,0.04978708]
[1744508839364,29.92,132.06,132.03,7.5753]
[1744508839562,599.28,132.09,132.03,7.5753]
[1744508839762,0.05347418,132.06,132.03,7.5753]
[1744508839963,0.05347418,132.06,132.05,0.04797964]
[1744508840366,29.97347418,132.06,132.05,0.04797964]
[1744508840864,0.05347418,132.06,132.05,0.04797964]
[1744508841167,29.97347418,132.06,132.05,0.04797964]
[1744508841363,0.05347418,132.06,132.05,0.04797964]
[1744508841568,29.97347418,132.06,132.05,0.04797964]
[1744508842260,31.29347418,132.06,132.05,0.04797964]
[1744508842459,0.05347418,132.06,132.05,0.04797964]
[1744508842659,31.29347418,132.06,132.05,0.04797964]
[1744508844166,31.29347418,132.06,131.95,359.9708]
[1744508844370,31.24,132.06,131.95,1.9708]
[1744508844672,1.9808,132.05,131.95,1.9708]
[1744508845363,0.04779953,132.01,132.0,7.5771]
[1744508845566,31.24,132.01,132.0,7.5771]
[1744508845775,31.29663223,132.02,131.99,0.05332032]
[1744508845962,31.29663223,132.02,132.01,7.5765]
[1744508846870,3.223e-05,132.02,132.01,7.5765]
[1744508847370,3.223e-05,132.02,132.01,15.1565]
[1744508849072,31.24,132.11,132.01,396.82]
[1744508849268,31.24,132.11,132.02,2.1198]
[1744508849473,38.8109,132.11,132.06,7.5731]
[1744508849674,31.24,132.11,132.02,2.1198]
[1744508849874,15.81755577,132.1,132.02,2.1198]
[1744508850079,7.62924973,132.08,132.05,0.05324904]
[1744508850374,31.24,132.07,132.05,0.05324904]
[1744508850567,47.05755577,132.07,131.98,2.1193]
[1744508850767,51.25615577,132.07,131.95,4.1312]
[1744508851178,7.5753,132.04,131.99,7.5774]
[1744508851376,31.24,132.03,131.99,7.5774]
[1744508851672,0.05256014,132.02,132.0,0.05630845]
[1744508852375,0.05256014,132.02,132.0,7.63300845]
[1744508852577,0.05256014,132.02,132.0,0.05630845]
[1744508854578,7.62876014,132.02,132.0,0.05630845]
[1744508856277,7.62876014,132.02,131.95,7.5797]
[1744508856278,15.81755577,132.01,131.95,7.5797]
[1744508856485,15.81755577,131.98,131.87,358.0]
[1744508856774,31.24,131.97,131.87,358.0]
[1744508857480,0.05678236,131.93,131.91,7.63454274]
[1744508857682,31.26,131.92,131.91,7.63454274]
[1744508859376,31.26,131.92,131.86,6.1847]
[1744508859680,47.07755577,131.92,131.86,6.1847]
[1744508859881,7.5826,131.91,131.86,2.0914]
[1744508860079,7.5826,131.91,131.8,3.9891]
[1744508860280,646.97755577,131.92,131.87,7.5841]
[1744508860480,7.5823,131.91,131.8,5.9618]
[1744508860781,646.97755577,131.92,131.8,5.9618]
[1744508860983,0.05704602,131.87,131.86,7.5846]
[1744508861185,31.26,131.87,131.86,7.5846]
[1744508863379,31.26,131.87,131.8,5.9618]
[1744508863584,31.26,131.87,131.78,1.31983161]
[1744508863585,15.81755577,131.82,131.74,6.2216]
[1744508863777,15.81755577,131.85,131.75,1.38779024]
[1744508863977,0.05585526,131.79,131.78,7.5897]
[1744508864375,0.05781979,131.8,131.74,6.2216]
[1744508864581,0.05781979,131.8,131.75,1.38778754]
[1744508864777,15.81755577,131.79,131.74,6.2216]
[1744508865083,31.26,131.78,131.76,7.5904]
[1744508865284,31.26,131.78,131.74,6.2216]
[1744508865685,0.04996094,131.77,131.74,6.2216]
[1744508865880,0.04996094,131.77,131.74,13.8134]
[1744508866485,0.04996094,131.77,131.75,7.5914]
[1744508866984,31.28,131.8,131.77,7.5899]
[1744508867184,31.28,131.79,131.77,7.5899]
[1744508867684,31.28,131.81,131.74,6.2216]
[1744508868084,0.05449827,131.79,131.76,0.05058717]
[1744508868384,0.05449827,131.79,131.69,359.32070817]
[1744508868385,15.87205404,131.79,131.69,359.32070817]
[1744508868581,7.5899,131.78,131.72,7.5926]
[1744508868781,31.28,131.77,131.72,7.5926]
[1744508868981,15.81755577,131.76,131.72,7.5926]
[1744508869288,15.81755577,131.76,131.7,2.0856]
[1744508869585,0.05322901,131.74,131.7,2.0856]
[1744508869796,31.33322901,131.74,131.7,2.0856]
[1744508870088,1.31983161,131.97,131.73,15.81755577]
[1744508870289,15.81755577,131.9,131.76,15.81755577]
[1744508870583,33.0,131.89,131.77,2.0392]
[1744508870783,15.81755577,131.87,131.77,2.0392]
[1744508871282,0.05218912,131.83,131.81,0.05103662]
[1744508871484,33.0,131.82,131.81,0.05103662]
[1744508872082,33.0,131.82,131.74,3.9905]
[1744508872283,40.5879,131.82,131.76,7.5905]
[1744508872484,40.5879,131.82,131.74,3.9905]
[1744508872689,33.0,131.82,131.74,3.9905]
[1744508872892,15.81755577,131.81,131.74,3.9905]
[1744508873284,0.05014945,131.79,131.74,3.9905]
[1744508873488,33.0,131.78,131.71,2.0856]
[1744508873888,33.0,131.78,131.75,7.5912]
[1744508874088,0.05533298,131.76,131.71,2.0856]
[1744508876189,0.05533298,131.76,131.73,7.5923]
[1744508876390,0.05533298,131.76,131.71,2.0856]
[1744508876791,0.05533298,131.76,131.74,7.5919]
[1744508877586,0.05533298,131.76,131.75,7.5914]
[1744508877799,0.05533298,131.76,131.71,2.0856]
[1744508878489,0.05533298,131.76,131.68,2.0077]
[1744508878793,7.5928,131.73,131.66,1.9989]
[1744508878993,33.02,131.72,131.66,1.9989]
[1744508879491,0.05674269,131.7,131.66,1.9989]
[1744508880394,0.05674269,131.7,131.69,7.5949]
[1744508881389,0.05674269,131.7,131.64,2.0077]
[1744508881793,15.81755577,131.68,131.61,2.1198]
[1744508881991,15.81755577,131.65,131.56,1.32188711]
[1744508882190,15.81755577,131.62,131.51,4.1745]
[1744508882395,34.46,131.61,131.51,4.1745]
[1744508882895,0.05675467,131.57,131.56,7.602]
[1744508883096,25.40145577,131.65,131.54,34.46]
[1744508883097,17.80375577,131.65,131.54,34.46]
[1744508883293,26.01748924,131.67,131.55,0.04823285]
[1744508883494,26.01748924,131.7,131.56,26.01748924]
[1744508883692,26.01748924,131.7,131.57,4.1197]
[1744508883891,26.01748924,131.64,131.57,4.1197]
[1744508884493,26.01748924,131.61,131.54,7.603]
[1744508884692,34.46,131.6,131.54,7.603]
[1744508884896,34.46,131.6,131.52,4.2074]
[1744508884897,26.01748924,131.58,131.47,34.46]
[1744508885085,34.46,131.6,131.44,1.32296755]
[1744508885086,26.01748924,131.59,131.44,1.32296755]
[1744508885294,26.01748924,131.56,131.44,1.32296755]
[1744508885489,26.01748924,131.59,131.39,2.1083]
[1744508885490,26.01748924,131.53,131.39,2.1083]
[1744508885788,26.01748924,131.5,131.4,2.1424]
[1744508885989,0.04791349,131.46,131.42,7.6102]
[1744508886189,0.04791349,131.46,131.38,70.29183375]
[1744508886389,37.26791349,131.46,131.38,70.29183375]
[1744508886588,6.1708,131.49,131.32,265.73677658]
[1744508886589,43.3908,131.49,131.41,7.6109]
[1744508886789,0.05263163,131.43,131.35,37.22]
[1744508886992,6.1708,131.49,131.36,1.39198286]
[1744508887203,26.01748924,131.59,131.4,26.01748924]
[1744508887204,26.01748924,131.52,131.4,26.01748924]
[1744508887401,63.25748924,131.55,131.42,26.01748924]
[1744508887588,63.25748924,131.55,131.43,37.24]
[1744508888097,43.3463,131.58,131.45,26.01748924]
[1744508888287,0.05143826,131.5,131.48,0.0557485]
[1744508888486,2.0694,131.58,131.49,37.24]
[1744508888694,2.0369,131.61,131.5,41.4763]
[1744508888893,2.0369,131.61,131.5,43.6296]
[1744508889590,0.05594195,131.57,131.54,0.05207288]
[1744508889797,37.24,131.64,131.55,37.24]
[1744508890394,37.24,131.64,131.56,2.1487]
[1744508890596,26.01748924,131.65,131.56,2.1487]
[1744508890796,37.24,131.67,131.56,2.1487]
[1744508890994,0.04863765,131.62,131.59,0.0517794]
[1744508891189,26.01748924,131.71,131.6,37.24]
[1744508891393,26.01748924,131.71,131.61,37.24]
[1744508892298,0.05085413,131.67,131.65,0.05697545]
[1744508896095,6.1099,131.73,131.65,37.29697545]
[1744508896294,6.1099,131.73,131.65,37.24]
[1744508896494,6.1099,131.73,131.69,7.5943]
[1744508897094,6.1099,131.73,131.65,37.24]
[1744508897095,0.05073633,131.72,131.65,37.24]
[1744508897300,0.05073633,131.72,131.7,0.0485493]
[1744508897598,0.05073633,131.72,131.7,0.05543281]
[1744508898503,0.05073633,131.72,131.71,7.5938]
[1744508898702,39.349,131.79,131.7,0.05543281]
[1744508899003,26.01748924,131.77,131.7,7.5942]
[1744508899206,33.60828924,131.77,131.66,39.2865]
[1744508900095,0.05289236,131.73,131.7,0.05398236]
[1744508902306,0.05289236,131.73,131.72,7.5932]
[1744508902508,2.109,131.79,131.7,37.27398236]
[1744508902704,2.109,131.79,131.7,37.22]
[1744508903706,0.05706616,131.76,131.74,7.5915]
[1744508903907,0.05706616,131.76,131.73,0.05424086]
[1744508904308,0.05706616,131.76,131.75,7.5914]
[1744508904503,0.05706616,131.76,131.73,0.05424086]
[1744508905602,37.27706616,131.76,131.73,0.05424086]
[1744508907004,37.27706616,131.76,131.73,7.64674086]
[1744508907206,37.27706616,131.76,131.73,0.05424086]
[1744508907905,0.05706616,131.76,131.73,0.05424086]
[1744508908310,0.05706616,131.76,131.75,7.5914]
[1744508910210,0.05706616,131.76,131.73,0.05424086]
[1744508911722,0.05706616,131.76,131.75,7.5914]
[1744508913503,0.05706616,131.76,131.73,0.05424086]
[1744508913708,26.01748924,131.75,131.73,0.05424086]
[1744508914717,0.05706616,131.76,131.73,0.05424086]
[1744508915014,7.64826616,131.76,131.73,0.05424086]
[1744508915208,0.05706616,131.76,131.73,0.05424086]
[1744508916314,0.05706616,131.76,131.74,7.5916]
[1744508916613,0.05706616,131.76,131.73,0.05424086]
[1744508917010,0.05706616,131.76,131.75,7.5914]
[1744508917208,0.05706616,131.76,131.73,0.05424086]
[1744508917514,0.05706616,131.76,131.73,7.64654086]
[1744508919513,26.01748924,131.75,131.73,0.05424086]
[1744508919907,7.592,131.74,131.67,37.3]
[1744508920213,26.01748924,131.75,131.67,37.3]
[1744508920613,33.60908924,131.75,131.67,37.3]
[1744508920817,26.01748924,131.75,131.67,37.3]
[1744508921019,0.04846689,131.72,131.7,0.05316141]
[1744508921218,0.04846689,131.72,131.71,7.5938]
[1744508921518,0.04846689,131.72,131.71,44.8938]
[1744508922913,0.04846689,131.72,131.71,37.3]
[1744508923519,0.04846689,131.72,131.71,44.8938]
[1744508924624,0.04846689,131.72,131.7,0.05316141]
[1744508925216,7.64196689,131.72,131.7,0.05316141]
[1744508925417,0.04846689,131.72,131.61,1.32141026]
[1744508925723,63.31748924,131.74,131.63,37.3]
[1744508925724,26.01748924,131.71,131.63,37.3]
[1744508925921,26.01748924,131.71,131.59,2.1371]
[1744508926222,26.01748924,131.71,131.63,37.3]
[1744508926727,7.6480646,131.68,131.66,0.05139827]
[1744508927620,0.0522646,131.68,131.66,0.05139827]
[1744508928026,0.0522646,131.68,131.66,7.64779827]
[1744508928227,0.0522646,131.68,131.66,0.05139827]
[1744508928624,0.0522646,131.68,131.67,7.5961]
[1744508930324,7.5921,131.74,131.71,7.5935]
[1744508930841,53.3057592,131.76,131.69,7.5945]
[1744508931327,7.5924,131.74,131.7,7.5941]
[1744508931529,7.64138158,131.74,131.71,0.05148631]
[1744508932430,0.04898158,131.74,131.71,0.05148631]
[1744508932927,0.04898158,131.74,131.71,7.64478631]
[1744508933431,7.64098158,131.74,131.71,7.64478631]
[1744508933929,7.64098158,131.74,131.71,0.05148631]
[1744508934127,7.5932,131.72,131.71,0.05148631]
[1744508934430,16.0057592,131.7,131.62,4.1447]
[1744508934630,16.0057592,131.7,131.62,2.096]
[1744508935132,7.5958,131.68,131.64,7.5976]
[1744508935435,0.05422232,131.67,131.65,0.05320339]
[1744508935626,0.05422232,131.67,131.65,7.65010339]
[1744508935826,0.05422232,131.67,131.65,0.05320339]
[1744508936129,0.05422232,131.67,131.66,7.5966]
[1744508937327,0.05422232,131.67,131.65,7.65020339]
[1744508938434,0.05422232,131.67,131.66,7.5966]
[1744508938635,0.05422232,131.67,131.65,0.05320339]
[1744508939133,0.05422232,131.67,131.66,7.5966]